bitfinex/quotes_BTCUSD_20250519
["timestamp","ask_amount","ask_price","bid_price","bid_amount"]
[1747667148407,0.2976389,104450.0,104430.0,0.03489367]
[1747667148944,0.0331,104450.0,104430.0,0.03489367]
[1747667149147,0.00249409,104450.0,104430.0,0.06779367]
[1747667149613,0.1633094,104460.0,104430.0,0.07136374]
[1747667149750,0.4278483,104460.0,104430.0,0.07236374]
[1747667150378,0.4278483,104460.0,104430.0,0.07136374]
[1747667150714,0.3305389,104460.0,104430.0,0.07236374]
[1747667150925,0.3305389,104460.0,104430.0,0.07136374]
[1747667151200,0.3305389,104460.0,104430.0,0.07236374]
[1747667151910,0.0302,104450.0,104440.0,0.00357007]
[1747667153090,0.0242,104450.0,104440.0,0.00357007]
[1747667153496,0.32433299,104450.0,104440.0,0.00357007]
[1747667153692,0.3218389,104450.0,104440.0,0.00357007]
[1747667153893,0.3228389,104450.0,104440.0,0.00357007]
[1747667154100,0.3248389,104450.0,104440.0,0.00357007]
[1747667154668,0.2675389,104450.0,104430.0,0.00357007]
[1747667154868,0.2961389,104440.0,104430.0,0.00357007]
[1747667155299,0.2675389,104450.0,104430.0,0.00357007]
[1747667155504,0.2989389,104450.0,104430.0,0.00357007]
[1747667155933,0.2959389,104450.0,104430.0,0.00357007]
[1747667156138,0.3287389,104450.0,104430.0,0.00457007]
[1747667156451,0.3287389,104450.0,104430.0,0.00357007]
[1747667156739,0.3287389,104450.0,104430.0,0.00457007]
[1747667157343,0.2959389,104450.0,104430.0,0.00457007]
[1747667157489,0.0329,104440.0,104430.0,0.00557007]
[1747667158086,0.42954239,104440.0,104430.0,0.00557007]
[1747667158397,0.4270483,104440.0,104430.0,0.00457007]
[1747667158610,0.4270483,104440.0,104430.0,0.00557007]
[1747667158844,0.4270483,104440.0,104430.0,0.00457007]
[1747667159255,0.4270483,104440.0,104430.0,0.00557007]
[1747667159658,0.4270483,104440.0,104430.0,0.002]
[1747667160219,0.7670483,104440.0,104430.0,0.002]
[1747667160856,1.0255872,104440.0,104430.0,0.002]
[1747667161018,1.09341288,104440.0,104430.0,0.002]
[1747667161227,1.0461872,104440.0,104430.0,0.002]
[1747667161425,1.06072805,104440.0,104430.0,0.002]
[1747667161933,1.06072805,104440.0,104430.0,0.001]
[1747667162070,0.3706,104430.0,104420.0,0.002]
[1747667162258,1.1937072,104430.0,104420.0,0.002]
[1747667162702,0.9969872,104430.0,104420.0,0.002]
[1747667162907,0.0306,104430.0,104420.0,0.002]
[1747667163112,0.0246,104440.0,104420.0,0.002]
[1747667163113,0.0526,104440.0,104420.0,0.002]
[1747667163375,0.4616989,104450.0,104420.0,0.0327]
[1747667163578,0.003,104430.0,104420.0,0.06819387]
[1747667163997,0.003,104430.0,104420.0,0.0658]
[1747667164267,0.003,104430.0,104420.0,0.002]
[1747667164938,0.3584694,104450.0,104420.0,0.00706861]
[1747667164939,0.00249409,104440.0,104420.0,0.00706861]
[1747667165146,0.003,104430.0,104420.0,0.07186861]
[1747667165750,0.003,104430.0,104420.0,0.04116861]
[1747667165945,0.006,104430.0,104420.0,0.00567464]
[1747667166150,0.006,104430.0,104420.0,0.00806852]
[1747667166358,0.006,104430.0,104420.0,0.07366852]
[1747667166511,0.003,104430.0,104420.0,0.26978839]
[1747667166716,0.003,104430.0,104420.0,0.36470404]
[1747667166917,0.003,104430.0,104420.0,0.36570404]
[1747667167323,0.003,104430.0,104420.0,0.36470404]
[1747667167585,0.003,104430.0,104420.0,0.56255947]
[1747667167785,0.006,104430.0,104420.0,0.56355947]
[1747667168232,0.003,104430.0,104420.0,0.56355947]
[1747667168439,0.00249409,104450.0,104420.0,0.52995947]
[1747667168638,0.32393299,104460.0,104430.0,0.00239361]
[1747667168858,0.42124239,104460.0,104430.0,0.00239361]
[1747667169053,0.2645389,104450.0,104420.0,0.56595947]
[1747667169186,0.2645389,104450.0,104420.0,0.56795947]
[1747667169388,0.49861557,104460.0,104420.0,0.56395947]
[1747667169893,0.49861557,104460.0,104430.0,0.001]
[1747667170082,0.2645389,104450.0,104420.0,0.56195947]
[1747667170330,0.0973094,104460.0,104430.0,0.06419361]
[1747667170509,0.3618483,104460.0,104440.0,0.00267384]
[1747667171607,0.3628483,104460.0,104440.0,0.00267384]
[1747667171815,0.3628483,104460.0,104440.0,0.19955384]
[1747667172053,0.3638483,104460.0,104440.0,0.19955384]
[1747667172505,0.3965483,104460.0,104440.0,0.19955384]
[1747667172679,0.3638483,104460.0,104440.0,0.19955384]
[1747667172880,0.2665389,104460.0,104440.0,0.19955384]
[1747667173062,0.2665389,104460.0,104440.0,0.23115384]
[1747667173262,0.2665389,104460.0,104440.0,0.19955384]
[1747667173639,0.2655389,104460.0,104440.0,0.23055384]
[1747667174080,0.2675389,104460.0,104440.0,0.26155384]
[1747667174650,0.003,104460.0,104450.0,0.06659348]
[1747667174840,0.003,104460.0,104450.0,0.19927348]
[1747667175042,0.003,104460.0,104450.0,0.26188]
[1747667175330,0.003,104460.0,104450.0,0.45872]
[1747667175826,0.00209192,104460.0,104450.0,0.45872]
[1747667176056,9.192e-05,104460.0,104450.0,0.45972]
[1747667176180,0.26144792,104480.0,104450.0,0.45972]
[1747667176381,0.42183674,104480.0,104450.0,0.46172]
[1747667176853,0.42183674,104480.0,104450.0,0.45972]
[1747667177370,0.16038882,104480.0,104450.0,0.45972]
[1747667177495,0.42492772,104480.0,104450.0,0.45972]
[1747667178046,0.42492772,104480.0,104450.0,0.45872]
[1747667178250,0.42492772,104480.0,104450.0,0.45972]
[1747667178446,0.36232772,104480.0,104450.0,0.45972]
[1747667178650,0.39512772,104480.0,104460.0,0.00267384]
[1747667178875,0.1301094,104470.0,104460.0,0.00267384]
[1747667179015,0.4272483,104470.0,104460.0,0.00267384]
[1747667179245,0.3618483,104470.0,104460.0,0.00267384]
[1747667179665,0.0973094,104470.0,104460.0,0.00267384]
[1747667179824,0.03617942,104480.0,104460.0,0.00267384]
[1747667180023,0.43062772,104480.0,104460.0,0.00267384]
[1747667180230,0.19144251,104470.0,104460.0,0.19413331]
[1747667180462,0.45598141,104470.0,104460.0,0.19413331]
[1747667180658,0.45598141,104470.0,104460.0,0.19145947]
[1747667180876,0.19146084,104460.0,104450.0,0.45754676]
[1747667181082,0.19146084,104460.0,104450.0,0.39454676]
[1747667181762,0.002,104470.0,104460.0,0.25376084]
[1747667181974,0.002,104470.0,104460.0,0.19146084]
[1747667182181,0.002,104470.0,104460.0,0.25376084]
[1747667182591,0.58416854,104480.0,104460.0,0.19146084]
[1747667183021,0.58416854,104480.0,104470.0,0.19144251]
[1747667183354,0.55376854,104480.0,104470.0,0.19144251]
[1747667183762,0.55576854,104480.0,104470.0,0.19144251]
[1747667183915,0.00957157,104470.0,104460.0,0.25395315]
[1747667184119,0.01914342,104470.0,104460.0,0.26352573]
[1747667184485,0.01914287,104470.0,104460.0,0.27309822]
[1747667184685,0.01914287,104470.0,104460.0,0.29352518]
[1747667184914,0.01914287,104470.0,104460.0,0.30309758]
[1747667185501,0.02014287,104470.0,104460.0,0.30309758]
[1747667185713,0.001,104470.0,104460.0,0.30309758]
[1747667186526,0.001,104470.0,104460.0,0.30666765]
[1747667186956,0.003,104470.0,104460.0,0.30666765]
[1747667187385,0.003,104470.0,104460.0,0.64666765]
[1747667187797,0.003,104470.0,104460.0,0.74397705]
[1747667188545,0.003,104470.0,104460.0,0.84318765]
[1747667189392,0.002,104470.0,104460.0,0.84318765]
[1747667189603,0.0387625,104480.0,104470.0,0.19144251]
[1747667189833,0.0291913,104480.0,104470.0,0.41695777]
[1747667189992,0.04833343,104480.0,104470.0,0.41695786]
[1747667190200,0.50429725,104480.0,104470.0,0.38824251]
[1747667190616,0.48515584,104480.0,104470.0,0.20101463]
[1747667190812,0.51945584,104480.0,104470.0,0.21058657]
[1747667191004,0.50988482,104480.0,104470.0,0.19144251]
[1747667191211,0.24534592,104480.0,104470.0,0.19144251]
[1747667191428,0.50988482,104480.0,104470.0,0.21058666]
[1747667191750,0.50488482,104480.0,104470.0,0.2201586]
[1747667192207,0.21058629,104470.0,104460.0,0.39183091]
[1747667192413,0.49855344,104470.0,104460.0,0.20037007]
[1747667192627,0.01914323,104470.0,104460.0,0.41097653]
[1747667192833,0.2675389,104480.0,104460.0,0.47597561]
[1747667193034,0.00957139,104470.0,104460.0,0.48554782]
[1747667193275,0.00957139,104470.0,104460.0,0.28517775]
[1747667193447,0.01914296,104470.0,104460.0,0.48197775]
[1747667194622,0.49426834,104470.0,104460.0,0.1978]
[1747667194816,0.53902538,104470.0,104460.0,0.001]
[1747667195024,0.63633478,104470.0,104460.0,0.001]
[1747667195792,0.37179588,104470.0,104460.0,0.001]
[1747667196004,0.20103369,104460.0,104450.0,0.00623723]
[1747667196188,0.36114309,104460.0,104450.0,0.00623723]
[1747667196389,0.62568199,104460.0,104450.0,0.00623723]
[1747667196884,0.24222625,104450.0,104440.0,0.21531289]
[1747667197104,0.52839202,104450.0,104440.0,0.00466716]
[1747667197278,0.52839202,104450.0,104440.0,0.19616467]
[1747667197526,0.52839202,104450.0,104440.0,0.20573954]
[1747667197742,0.4751657,104450.0,104440.0,0.21531423]
[1747667197946,0.2106257,104450.0,104440.0,0.21531423]
[1747667198154,0.52571223,104450.0,104440.0,0.22688883]
[1747667198589,0.01914644,104450.0,104440.0,0.24603738]
[1747667198794,0.00957313,104450.0,104440.0,0.44271738]
[1747667198997,0.01914653,104450.0,104440.0,0.44271738]
[1747667199406,0.01914644,104450.0,104440.0,0.44471738]
[1747667199589,0.00957331,104450.0,104440.0,0.44562029]
[1747667199766,0.01914635,104450.0,104440.0,0.42647073]
[1747667200089,0.29325728,104460.0,104450.0,0.2202002]
[1747667200292,0.28368433,104460.0,104450.0,0.2202002]
[1747667200469,0.28368378,104460.0,104450.0,0.22977351]
[1747667200675,0.01914488,104460.0,104450.0,0.22977351]
[1747667200875,0.0382905,104460.0,104450.0,0.22977351]
[1747667201281,0.0382905,104460.0,104450.0,0.2212002]
[1747667202014,0.03829031,104460.0,104450.0,0.23701697]
[1747667202264,0.04786326,104460.0,104450.0,0.23701697]
[1747667202462,0.02871764,104460.0,104450.0,0.23701697]
[1747667202992,0.01914488,104460.0,104450.0,0.23701697]
[1747667203106,0.0095723,104460.0,104450.0,0.23701697]
[1747667203313,0.52725344,104470.0,104450.0,0.23701697]
[1747667203518,0.29325416,104470.0,104460.0,0.22017913]
[1747667203717,0.00957148,104470.0,104460.0,0.22975153]
[1747667203913,0.01914305,104470.0,104460.0,0.42643153]
[1747667204639,0.01914305,104470.0,104460.0,0.42910492]
[1747667205057,0.0297148,104470.0,104460.0,0.42910492]
[1747667205260,0.01510305,104470.0,104460.0,0.42910492]
[1747667205460,0.00553148,104470.0,104460.0,0.42910492]
[1747667205897,0.01510314,104470.0,104460.0,0.42910492]
[1747667206134,0.001,104470.0,104460.0,0.42910492]
[1747667206335,0.001,104470.0,104460.0,0.49210492]
[1747667206532,0.003,104470.0,104460.0,0.49210492]
[1747667206946,0.001,104470.0,104460.0,0.49210492]
[1747667207202,0.31239318,104480.0,104470.0,0.21058611]
[1747667207405,0.29325096,104480.0,104470.0,0.22015768]
[1747667207607,0.30282198,104480.0,104470.0,0.22015768]
[1747667207811,0.01914122,104480.0,104470.0,0.22972916]
[1747667208392,0.02871206,104480.0,104470.0,0.22972916]
[1747667208934,0.03928317,104480.0,104470.0,0.22015768]
[1747667209338,0.04128317,104480.0,104470.0,0.20101445]
[1747667209574,0.05085437,104480.0,104470.0,0.22015796]
[1747667209802,0.05085437,104480.0,104470.0,0.23240241]
[1747667210010,0.03171206,104480.0,104470.0,0.24197389]
[1747667210249,0.30582198,104480.0,104470.0,0.24197389]
[1747667211161,0.31539309,104480.0,104470.0,0.23240241]
[1747667211539,0.30582198,104480.0,104470.0,0.24197389]
[1747667212103,0.30582198,104480.0,104470.0,0.23240241]
[1747667212276,0.31539309,104480.0,104470.0,0.23240241]
[1747667213185,0.50681728,104480.0,104470.0,0.21325918]
[1747667213444,0.50681792,104480.0,104470.0,0.23240259]
[1747667213645,0.30582253,104480.0,104470.0,0.24197416]
[1747667213847,0.2866804,104480.0,104470.0,0.2419737]
[1747667214020,0.29625142,104480.0,104470.0,0.2419737]
[1747667214463,0.29625151,104480.0,104470.0,0.23240222]
[1747667214754,0.2866804,104480.0,104470.0,0.22283065]
[1747667214966,0.34998067,104480.0,104470.0,0.22283065]
[1747667215170,0.54140504,104480.0,104470.0,0.00267288]
[1747667215340,0.63871444,104480.0,104470.0,0.00267288]
[1747667215747,0.5366252,104470.0,104460.0,0.03228357]
[1747667215950,0.5366252,104470.0,104460.0,0.00356473]
[1747667216561,0.6339346,104470.0,104460.0,0.00356473]
[1747667216759,0.6339346,104470.0,104460.0,0.00429015]
[1747667217734,0.6339346,104470.0,104460.0,0.001]
[1747667218607,0.3693957,104470.0,104460.0,0.001]
[1747667218852,0.6339346,104470.0,104460.0,0.001]
[1747667219309,0.3693957,104470.0,104460.0,0.001]
[1747667219548,0.6339346,104470.0,104460.0,0.001]
[1747667219800,0.5724346,104470.0,104460.0,0.21160664]
[1747667220037,0.22015833,104470.0,104460.0,0.21160664]
[1747667220303,0.02871462,104470.0,104460.0,0.42743162]
[1747667220773,0.24106596,104480.0,104470.0,0.21058648]
[1747667221034,0.02871215,104480.0,104470.0,0.22972971]
[1747667221268,0.03828317,104480.0,104470.0,0.22015823]
[1747667221486,0.04785428,104480.0,104470.0,0.2297298]
[1747667221690,0.229708,104480.0,104470.0,0.22015823]
[1747667221897,0.01914122,104480.0,104470.0,0.2297298]
[1747667222108,0.01914094,104480.0,104470.0,0.22015695]
[1747667222538,0.02114094,104480.0,104470.0,0.22015695]
[1747667222743,0.02114122,104480.0,104470.0,0.22015695]
[1747667223113,0.02214122,104480.0,104470.0,0.22015695]
[1747667223928,0.04128244,104480.0,104470.0,0.22015695]
[1747667224359,0.30582134,104480.0,104470.0,0.22015695]
[1747667224556,0.2962505,104480.0,104470.0,0.22015695]
[1747667225183,0.0317116,104480.0,104470.0,0.23921671]
[1747667225497,0.003,104480.0,104470.0,0.23921671]
[1747667225710,0.01257047,104480.0,104470.0,0.23921671]
[1747667225910,0.01257038,104480.0,104470.0,0.23921671]
[1747667226863,0.02214104,104480.0,104470.0,0.23921671]
[1747667227042,0.28667994,104480.0,104470.0,0.21058556]
[1747667227726,0.27710928,104480.0,104470.0,0.21058556]
[1747667227943,0.28667984,104480.0,104470.0,0.22976602]
[1747667228917,0.28667984,104480.0,104470.0,0.21058556]
[1747667229943,0.29625059,104480.0,104470.0,0.21058556]
[1747667230109,0.28667984,104480.0,104470.0,0.21058556]
[1747667230449,0.28367984,104480.0,104470.0,0.21058556]
[1747667230652,0.27110928,104480.0,104470.0,0.21058556]
[1747667230855,0.28067975,104480.0,104470.0,0.21058556]
[1747667231296,0.21828335,104490.0,104480.0,0.22013698]
[1747667231498,0.42002225,104490.0,104480.0,0.41733698]
[1747667231703,0.42002225,104490.0,104480.0,0.42690754]
[1747667231911,0.4104526,104490.0,104480.0,0.62370754]
[1747667232063,0.1459137,104490.0,104480.0,0.62370754]
[1747667232508,0.1459137,104490.0,104480.0,0.62470754]
[1747667232509,0.1499137,104490.0,104480.0,0.62470754]
[1747667233277,0.1499137,104490.0,104480.0,0.78641694]
[1747667233829,0.1459137,104490.0,104480.0,0.78541694]
[1747667234238,0.1469137,104490.0,104480.0,0.78541694]
[1747667234672,0.1459137,104490.0,104480.0,0.78541694]
[1747667235029,0.1459137,104490.0,104480.0,0.78641694]
[1747667235582,0.1459137,104490.0,104480.0,0.78741694]
[1747667237120,0.1459137,104490.0,104480.0,0.39341694]
[1747667237321,0.1459137,104490.0,104480.0,0.78709694]
[1747667238249,0.1399137,104490.0,104480.0,0.78709694]
[1747667238456,0.1399137,104490.0,104480.0,0.78713694]
[1747667242144,0.1399137,104490.0,104480.0,0.72273694]
[1747667244476,0.1399137,104490.0,104480.0,0.40976632]
[1747667244687,0.41402225,104490.0,104480.0,0.41933698]
[1747667244862,0.45379208,104490.0,104480.0,0.23174754]
[1747667245090,0.44422225,104490.0,104480.0,0.62542754]
[1747667245277,0.17968335,104490.0,104480.0,0.62542754]
[1747667245813,0.18925318,104490.0,104480.0,0.60628632]
[1747667245948,0.47779208,104490.0,104480.0,0.62550754]
[1747667246154,0.47779208,104490.0,104480.0,0.42890763]
[1747667246358,0.48736209,104490.0,104480.0,0.22217707]
[1747667246565,0.48736209,104490.0,104480.0,0.42890773]
[1747667246814,0.47779208,104490.0,104480.0,0.43847829]
[1747667246967,0.48736219,104490.0,104480.0,0.41933707]
[1747667247169,0.48736209,104490.0,104480.0,0.42890773]
[1747667247379,0.21325309,104490.0,104480.0,0.43847829]
[1747667247798,0.22282301,104490.0,104480.0,0.43847829]
[1747667248000,0.22282292,104490.0,104480.0,0.44204247]
[1747667248203,0.21325309,104490.0,104480.0,0.44204247]
[1747667249047,0.21325309,104490.0,104480.0,0.24488247]
[1747667249299,0.21325309,104490.0,104480.0,0.44204247]
[1747667249806,0.21325309,104490.0,104480.0,0.24488247]
[1747667249926,0.22282301,104490.0,104480.0,0.42290125]
[1747667250146,0.21325309,104490.0,104480.0,0.43247181]
[1747667250676,0.22282301,104490.0,104480.0,0.4324719]
[1747667250846,0.21325309,104490.0,104480.0,0.4324719]
[1747667253122,0.21325309,104490.0,104480.0,0.22574134]
[1747667253304,0.21325309,104490.0,104480.0,0.4324719]
[1747667253717,0.20725309,104490.0,104480.0,0.4324719]
[1747667254047,0.19768335,104490.0,104480.0,0.4324719]
[1747667254193,0.1881137,104490.0,104480.0,0.4324719]
[1747667255949,0.1279137,104490.0,104480.0,0.4324719]
[1747667256549,0.1279137,104490.0,104480.0,0.44204265]
[1747667256550,0.1585137,104490.0,104480.0,0.44204265]
[1747667257730,0.1279137,104490.0,104480.0,0.44204265]
[1747667260113,0.1279137,104490.0,104480.0,0.43847847]
[1747667261455,0.1219137,104490.0,104480.0,0.43847847]
[1747667262462,0.1220137,104490.0,104480.0,0.43847847]
[1747667262824,0.1220137,104490.0,104480.0,0.63499847]
[1747667264083,0.4671918,104490.0,104480.0,0.2030353]
[1747667264303,0.4671918,104490.0,104480.0,0.40908623]
[1747667264501,0.45762206,104490.0,104480.0,0.42822763]
[1747667264642,0.1220137,104490.0,104480.0,0.42822763]
[1747667265249,0.1220137,104490.0,104480.0,0.23680344]
[1747667265469,0.1220137,104490.0,104480.0,0.42822763]
[1747667265672,0.1220137,104490.0,104480.0,0.43179649]
[1747667267165,0.1210137,104490.0,104480.0,0.43179649]
[1747667267592,0.1210137,104490.0,104480.0,0.46459649]
[1747667269086,0.1150137,104490.0,104480.0,0.46459649]
[1747667269752,0.1110137,104490.0,104480.0,0.43179649]
[1747667270963,0.1210137,104490.0,104480.0,0.43179649]
[1747667272543,0.1210137,104490.0,104480.0,0.23531649]
[1747667272730,0.1210137,104490.0,104480.0,0.64542748]
[1747667273226,0.1210137,104490.0,104480.0,0.64538748]
[1747667273880,0.1210137,104490.0,104480.0,0.70818748]
[1747667274966,0.1210137,104490.0,104480.0,0.30466748]
[1747667275287,0.1210137,104490.0,104480.0,0.49609167]
[1747667275664,0.1210137,104490.0,104480.0,0.43329167]
[1747667275971,0.1210137,104490.0,104480.0,0.45243307]
[1747667276910,0.1150137,104490.0,104480.0,0.53367511]
[1747667277316,0.1150137,104490.0,104480.0,0.47157511]
[1747667277581,0.1150137,104490.0,104480.0,0.53667511]
[1747667277891,0.1150137,104490.0,104480.0,0.55374683]
[1747667278128,0.1150137,104490.0,104480.0,0.65105623]
[1747667279470,0.1150137,104490.0,104480.0,0.66559708]
[1747667280735,0.1150137,104490.0,104480.0,0.54056875]
[1747667281194,0.1150137,104490.0,104480.0,0.44325935]
[1747667281855,0.1150137,104490.0,104480.0,0.85185935]
[1747667282686,0.1150137,104490.0,104480.0,1.0277096]
[1747667283111,0.1150137,104490.0,104480.0,1.2425496]
[1747667283923,0.1150137,104490.0,104480.0,1.3125496]
[1747667284202,0.1150137,104490.0,104480.0,1.6525496]
[1747667284467,0.1150137,104490.0,104480.0,0.8326296]
[1747667284675,0.1090137,104490.0,104480.0,1.2443096]
[1747667285114,0.1090137,104490.0,104480.0,1.27069097]
[1747667286219,0.08606262,104490.0,104480.0,1.27469097]
[1747667286434,0.08706262,104490.0,104480.0,1.27469097]
[1747667286675,0.08706262,104490.0,104480.0,1.27869097]
[1747667288030,0.08706262,104490.0,104480.0,1.2530696]
[1747667289201,0.08706262,104490.0,104480.0,1.28939063]
[1747667290424,0.08706262,104490.0,104480.0,1.26480978]
[1747667290641,0.0526383,104490.0,104480.0,0.8406296]
[1747667290840,0.0526383,104490.0,104480.0,1.2529096]
[1747667291019,0.0526383,104490.0,104480.0,1.27922719]
[1747667291226,0.0526383,104490.0,104480.0,0.86694719]
[1747667291432,0.0526383,104490.0,104480.0,1.27958719]
[1747667292284,0.0526383,104490.0,104480.0,1.2532696]
[1747667292422,0.0466383,104490.0,104480.0,1.2532696]
[1747667294887,0.0466383,104490.0,104480.0,0.87694072]
[1747667295236,0.0466383,104490.0,104480.0,1.32041272]
[1747667296463,0.0466383,104490.0,104480.0,2.42071272]
[1747667297769,0.0466383,104490.0,104480.0,1.98493272]
[1747667297995,0.0466383,104490.0,104480.0,1.32041272]
[1747667298967,0.0466383,104490.0,104480.0,0.90565272]
[1747667299136,0.0466383,104490.0,104480.0,1.73377272]
[1747667299347,0.0466383,104490.0,104480.0,1.31877272]
[1747667299556,0.0466383,104490.0,104480.0,1.73365272]
[1747667300180,0.0406383,104490.0,104480.0,0.47711187]
[1747667300389,0.1012383,104490.0,104480.0,0.63649935]
[1747667300635,0.1012383,104490.0,104480.0,0.54876042]
[1747667300849,0.1012383,104490.0,104480.0,0.52004842]
[1747667301216,0.0406383,104490.0,104480.0,0.61735782]
[1747667302161,0.05020786,104490.0,104480.0,0.61735782]
[1747667302327,0.05020786,104490.0,104480.0,0.82763782]
[1747667302522,0.0406383,104490.0,104480.0,1.16763782]
[1747667303128,0.13154761,104490.0,104480.0,1.16743792]
[1747667303333,0.14111799,104490.0,104480.0,0.86004852]
[1747667303580,0.31338429,104490.0,104480.0,0.078]
[1747667303741,0.31338429,104490.0,104480.0,0.49340605]
[1747667303937,0.32295412,104490.0,104480.0,0.29813662]
[1747667304147,0.13154825,104490.0,104480.0,0.51254718]
[1747667304342,0.32295412,104490.0,104480.0,0.28284]
[1747667304553,0.31338438,104490.0,104480.0,0.078]
[1747667304820,0.57792328,104490.0,104480.0,0.078]
[1747667304996,0.33073922,104490.0,104480.0,0.078]
[1747667305240,0.69258752,104490.0,104480.0,0.078]
[1747667305478,0.42804862,104490.0,104480.0,0.074]
[1747667305687,0.40969378,104490.0,104480.0,0.07]
[1747667305891,0.40969378,104490.0,104480.0,0.074]
[1747667306046,0.30281437,104490.0,104480.0,0.072]
[1747667306444,0.30381437,104490.0,104480.0,0.07]
[1747667307948,0.29781437,104490.0,104480.0,0.07]
[1747667308185,0.29881437,104490.0,104480.0,0.07]
[1747667308579,0.56335327,104490.0,104480.0,0.07]
[1747667308785,1.00066267,104490.0,104480.0,0.07]
[1747667308992,1.26520157,104490.0,104480.0,0.07]
[1747667309203,1.00066267,104490.0,104480.0,0.07]
[1747667309916,0.21056614,104480.0,104470.0,0.0001435]
[1747667310227,0.37367554,104480.0,104470.0,0.0001435]
[1747667310431,0.63821444,104480.0,104470.0,0.0001435]
[1747667310640,0.37367554,104480.0,104470.0,0.0001435]
[1747667311051,0.37367554,104480.0,104470.0,0.22030127]
[1747667311052,0.0849414,104480.0,104470.0,0.22030127]
[1747667311262,0.30507819,104480.0,104470.0,0.22030127]
[1747667311461,0.1040828,104480.0,104470.0,0.22030127]
[1747667311886,0.08494094,104480.0,104470.0,0.22030127]
[1747667312099,0.0336383,104490.0,104480.0,0.2201367]
[1747667312313,0.11727787,104490.0,104480.0,0.2201367]
[1747667312515,0.1268477,104490.0,104480.0,0.2201367]
[1747667312820,0.12684761,104490.0,104480.0,0.22280335]
[1747667313022,0.05277769,104490.0,104480.0,0.22280335]
[1747667313263,0.0643477,104490.0,104480.0,0.22280335]
[1747667313474,0.05477769,104490.0,104480.0,0.22280335]
[1747667313682,0.0366383,104490.0,104480.0,0.53083275]
[1747667314519,0.0366383,104490.0,104480.0,1.43554678]
[1747667314930,0.0356383,104490.0,104480.0,1.43554678]
[1747667315131,0.0356383,104490.0,104480.0,1.43654678]
[1747667315357,0.0336383,104490.0,104480.0,1.43654678]
[1747667315635,0.0276383,104490.0,104480.0,1.43743655]
[1747667316533,0.00468716,104490.0,104480.0,1.43743655]
[1747667316769,0.00468716,104490.0,104480.0,1.43388013]
[1747667317017,0.00468716,104490.0,104480.0,1.46012345]
[1747667317720,0.00468716,104490.0,104480.0,1.17203027]
[1747667317962,0.00468716,104490.0,104480.0,1.56634695]
[1747667318189,0.00468716,104490.0,104480.0,1.50214695]
[1747667318414,0.00568716,104490.0,104480.0,1.51014695]
[1747667320363,0.00568716,104490.0,104480.0,1.29930695]
[1747667320614,0.06233122,104500.0,104490.0,0.56011564]
[1747667320829,0.06233122,104500.0,104490.0,1.27634504]
[1747667320830,0.09453122,104500.0,104490.0,1.27634504]
[1747667321024,0.09453122,104500.0,104490.0,1.48698504]
[1747667321232,0.03233122,104500.0,104490.0,1.06602504]
[1747667321373,0.03233122,104500.0,104490.0,1.48686504]
[1747667321783,0.03233122,104500.0,104490.0,1.49086504]
[1747667322590,0.03233122,104500.0,104490.0,1.49352185]
[1747667323076,0.03243122,104500.0,104490.0,1.49352185]
[1747667323306,0.02643122,104500.0,104490.0,1.49328185]
[1747667323538,0.05653122,104500.0,104490.0,1.49328185]
[1747667324039,0.02643122,104500.0,104490.0,1.49328185]
[1747667324274,0.02643122,104500.0,104490.0,1.49336185]
[1747667326221,0.02643122,104500.0,104490.0,1.08476185]
[1747667326471,0.02643122,104500.0,104490.0,1.0993027]
[1747667328562,0.02643122,104500.0,104490.0,1.1606027]
[1747667328969,0.02643122,104500.0,104490.0,1.15794589]
[1747667329755,0.02643122,104500.0,104490.0,1.12784589]
[1747667329963,0.02643122,104500.0,104490.0,1.09664589]
[1747667331007,0.02043122,104500.0,104490.0,1.09664589]
[1747667331748,0.02043122,104500.0,104490.0,1.09844589]
[1747667332728,0.02043122,104500.0,104490.0,1.09848589]
[1747667333036,0.02043122,104500.0,104490.0,0.87214504]
[1747667333250,0.05363122,104500.0,104490.0,1.08390504]
[1747667333450,0.05363122,104500.0,104490.0,0.66142504]
[1747667333654,0.05363122,104500.0,104490.0,1.08378504]
[1747667335122,0.08453122,104500.0,104490.0,1.08378504]
[1747667337263,0.08453122,104500.0,104490.0,1.08294504]
[1747667337451,0.02043122,104500.0,104490.0,1.08294504]
[1747667338100,0.02043122,104500.0,104490.0,1.14774504]
[1747667338276,0.02043122,104500.0,104490.0,1.16228589]
[1747667338774,0.01443122,104500.0,104490.0,1.16228589]
[1747667338978,0.01443122,104500.0,104490.0,1.09748589]
[1747667340218,0.01443122,104500.0,104490.0,0.67596589]
[1747667340431,0.01443122,104500.0,104490.0,1.09732589]
[1747667341255,0.01443122,104500.0,104490.0,0.67596589]
[1747667341397,0.01443122,104500.0,104490.0,1.09712589]
[1747667342371,0.01443122,104500.0,104490.0,1.16122589]
[1747667343113,0.01443122,104500.0,104490.0,0.74006589]
[1747667343338,0.01443122,104500.0,104490.0,1.16190589]
[1747667343749,0.01443122,104500.0,104490.0,1.188179]
[1747667344724,0.01443122,104500.0,104490.0,1.596779]
[1747667345831,0.01443122,104500.0,104490.0,1.532679]
[1747667346052,0.01443122,104500.0,104490.0,1.535279]
[1747667346256,0.01443122,104500.0,104490.0,1.567679]
[1747667346465,0.01443122,104500.0,104490.0,1.598039]
[1747667346674,0.00843122,104500.0,104490.0,1.598039]
[1747667349909,0.00843122,104500.0,104490.0,1.535439]
[1747667350130,0.00843122,104500.0,104490.0,1.523959]
[1747667350336,0.00843122,104500.0,104490.0,1.947519]
[1747667350777,0.00843122,104500.0,104490.0,1.979519]
[1747667351116,0.00843122,104500.0,104490.0,2.011419]
[1747667351932,0.00843122,104500.0,104490.0,1.947519]
[1747667352134,0.00843122,104500.0,104490.0,1.523959]
[1747667352337,0.00843122,104500.0,104490.0,1.734959]
[1747667352509,0.00843122,104500.0,104490.0,1.946959]
[1747667352913,0.03883122,104500.0,104490.0,1.946959]
[1747667353540,0.00843122,104500.0,104490.0,1.946959]
[1747667354154,0.00243122,104500.0,104490.0,1.946959]
[1747667354369,0.00243122,104500.0,104490.0,1.979259]
[1747667354631,0.00243122,104500.0,104490.0,2.010159]
[1747667355580,0.0636,104520.0,104510.0,0.22007352]
[1747667355581,0.05560167,104520.0,104510.0,0.22007352]
[1747667355781,0.05560167,104520.0,104510.0,0.62867352]
[1747667355991,0.06516839,104520.0,104510.0,0.62867352]
[1747667356801,0.06621632,104520.0,104510.0,0.62867352]
[1747667357228,0.0566496,104520.0,104510.0,0.62867352]
[1747667357818,0.0576496,104520.0,104510.0,0.62867352]
[1747667358430,0.07678331,104520.0,104510.0,0.62867352]
[1747667358635,0.07678313,104520.0,104510.0,0.62867352]
[1747667358834,0.28726923,104520.0,104510.0,0.81096924]
[1747667359036,0.07678349,104520.0,104510.0,0.83967333]
[1747667359241,0.0767834,104520.0,104510.0,0.83967333]
[1747667359409,0.07678349,104520.0,104510.0,0.83967333]
[1747667359609,0.0767834,104520.0,104510.0,0.83967333]